Cogmind - Beta 16.1 @@@ ROGUE MODE // 2026.02.14 @ 19:44:10 Player: Rudrot Result: Destroyed by Y6-3WF(R) with Subdweller Laser Performance ------------- Evolutions (0) 0 Regions Visited (3) 600 Robots Destroyed (15) 75 Value Destroyed (381) 381 Prototype IDs (0) 0 Alien Tech Used (0) 0 Bonus (56) 56 TOTAL SCORE: 1112 Bonus ------- Follower Combat Kills 56 Cogmind --------- Core Integrity 0/250 Matter 300/300 Energy 125/125 System Corruption 0% Temperature Cool (6) Movement Walking (120) Location -10/Subcaves Parts ------- > --- POWER (1) -------- Light Ion Engine > --- PROPULSION (2) --- Aluminum Leg Carbon-fiber Leg > --- UTILITY (2) ------ Small Storage Unit Signal Interpreter > --- WEAPON (2) ------- (None) > --- INVENTORY (8) ---- Light Ion Engine Aluminum Leg Aluminum Leg Improved Heat Sink Cooling System Improved Terrain Scanner Grenade Launcher Peak State ------------ > --- POWER ------------ Light Ion Engine > --- PROPULSION ------- Aluminum Leg Carbon-fiber Leg > --- UTILITY ---------- Small Storage Unit Signal Interpreter > --- WEAPON ----------- EM Shotgun EM Shotgun > --- INVENTORY -------- Light Ion Engine Aluminum Leg Aluminum Leg Cooling System Improved Terrain Scanner EM Shotgun Grenade Launcher Mining Laser [Rating: 12] Favorites ----------- Power Light Ion Engine Engine Light Ion Engine Propulsion Aluminum Leg Leg Aluminum Leg Utility Small Storage Unit Device Seismic Detector Storage Small Storage Unit Processor Signal Interpreter Weapon EM Shotgun Energy Gun EM Shotgun Ballistic Gun Light Assault Rifle Special Weapon Mining Laser Build | -11 -10 -10 -10 ------- Run | Yrd Mat Min Sub Slots Evolved . | . . . . Power . | . . . . Propulsion . | . . . . Utility . | . . . . Weapon . | . . . . Parts Attached 20 | 7 10 2 1 Power 2 | 1 1 . . Engine 2 | 1 1 . . Core . | . . . . Reactor . | . . . . Propulsion 8 | 2 5 1 . Treads . | . . . . Leg 8 | 2 5 1 . Wheel . | . . . . Hover . | . . . . Flight . | . . . . Utility 3 | 2 1 . . Device 1 | 1 . . . Storage 1 | 1 . . . Processor 1 | . 1 . . Hackware . | . . . . Protection . | . . . . Artifact . | . . . . Weapon 7 | 2 3 1 1 Energy Gun 4 | 1 2 . 1 Energy Cannon . | . . . . Ballistic Gun 2 | 1 1 . . Ballistic Cannon . | . . . . Launcher . | . . . . Special Weapon 1 | . . 1 . Impact Weapon . | . . . . Slashing Weapon . | . . . . Piercing Weapon . | . . . . Special Melee Weapon . | . . . . Unidentified Prototypes . | . . . . Parts Lost 3 | . . . 3 Power . | . . . . Propulsion . | . . . . Utility . | . . . . Weapon 3 | . . . 3 Highest Loss Streak 2 | . . . 2 To Critical Strikes . | . . . . Average Backups 7 | . 7 8 7 Power 1 | . 1 1 1 Propulsion 2 | . 3 2 2 Utility 1 | . 1 2 3 Weapon 1 | . . 2 1 Tool/Special . | . . . . Unused Backups 12 | . 5 . 7 Power 2 | . 1 . 1 Propulsion 5 | . 3 . 2 Utility 4 | . 1 . 3 Weapon 1 | . . . 1 Tool/Special . | . . . . Average Slot Usage (%) 98 | . 99 100 89 Engine 14 | . 14 14 14 Leg 27 | . 27 28 28 Device 1 | . 5 . . Storage 14 | . 14 14 14 Processor 12 | . 8 14 14 Energy Gun 19 | . 9 25 17 Ballistic Gun 6 | . 18 . . Special Weapon 1 | . . 2 . Peak Build Rating 12 | 7 10 12 12 Average Rating 9 | 5 8 10 10 On Entrance 7 | . 7 10 12 Avg Prop Armor Cover (%) . | . . . . Naked Turns . | . . . . Heaviest Build 14 | 14 14 14 14 Greatest Support 25 | 20 20 25 25 Greatest Overweight (x) 1 | . 1 . . Average Overweight (x) . | . . . . Largest Inventory Capacity 8 | 8 8 8 8 Average Capacity 7 | 7 8 8 8 Most Carried 8 | 2 8 8 8 Average Carried 7 | . 7 7 7 Final Capacity 8 | 8 8 8 8 Final Carried 8 | 2 8 8 7 Class Distribution -------------------- 100% | Mutant Dominant Class ---------------- Mutant | -10/Materials Mutant | -10/Mines Mutant | -10/Subcaves Resources | -11 -10 -10 -10 ----------- Run | Yrd Mat Min Sub Matter Collected 475 | 275 150 40 10 Remotely . | . . . . Salvage Created 629 | 119 299 151 60 Parts 36 | 8 21 5 2 Haulers Intercepted . | . . . . Recyclers Shooed 1 | . 1 . . Parts Field Recycled . | . . . . Retrieved Matter . | . . . . Parts Self-Destructed 7 | . . . 7 Prevented . | . . . . Parts Restored . | . . . . Kills | -11 -10 -10 -10 ------- Run | Yrd Mat Min Sub Combat Hostiles Destroyed 14 | . 8 5 1 Guns 13 | . 8 5 . Classes Destroyed 8 | 2 3 2 1 Tunneler 2 | 2 . . . Recycler 1 | 1 . . . Watcher 1 | . 1 . . Swarmer 3 | . 3 . . Grunt 6 | . 5 1 . Sentry 1 | . . 1 . Subdweller 1 | . . . 1 Assembled 3 | . . 3 . Best Kill Streak 3 | 3 3 1 1 Combat Bots Only 3 | . 3 1 1 Max Kills in Single Turn 1 | 1 1 1 1 Gunslinging . | . . . . Exploded . | . . . . Melee . | . . . . Uniques/NPCs Destroyed . | . . . . Combat | -11 -10 -10 -10 -------- Run | Yrd Mat Min Sub Hostile Shots Fired 96 | . 55 16 25 Missed 28 | . 18 5 5 Hits 68 | . 37 11 20 Projectile 68 | . 37 11 20 AOE 1 | . . 1 . Critical Strikes 2 | . 1 . 1 Damage Taken 1005 | 14 400 165 426 Core 252 | . 119 47 86 Absorbed by Shields . | . . . . Core Remaining (%) 100 | 100 . . . Volleys Fired 76 | 5 35 26 10 Largest 2 | 2 2 2 2 Hottest 100 | 60 90 100 90 Shots Fired 136 | 10 70 44 12 Gun 129 | 10 70 37 12 Cannon . | . . . . Launcher . | . . . . Special 7 | . . 7 . Kinetic 55 | 5 50 . . Thermal 7 | . . 7 . Explosive . | . . . . Electromagnetic 74 | 5 20 37 12 Robot Hit Streak 7 | 1 7 5 6 Robot Miss Streak 7 | 2 7 4 2 Penetration Max . | . . . . Secondary Targets 2 | . 2 . . Max Gunslinging Chain 1 | . 1 . . Shots Hit Robots 76 | 3 40 24 9 Core Hits 49 | 4 20 22 3 Critical Kills . | . . . . Critical Parts Destroyed 1 | . 1 . . Critical Strikes 1 | . 1 . . Destroy 1 | . 1 . . Melee Attacks . | . . . . Impact . | . . . . Slashing . | . . . . Piercing . | . . . . Sneak Attacks . | . . . . Combat Hostiles . | . . . . Follow-up Attacks . | . . . . Damage Inflicted 894 | 101 383 264 146 Guns 841 | 49 383 263 146 Cannons . | . . . . Explosions 47 | 47 . . . Melee . | . . . . Ramming 6 | 5 . 1 . Kinetic 263 | 9 254 . . Thermal 47 | 47 . . . Explosive . | . . . . Electromagnetic 578 | 40 129 263 146 Impact . | . . . . Slashing . | . . . . Piercing . | . . . . Highest Corruption . | . . . . Average Corruption . | . . . . Corruption Purged . | . . . . Corruption Blocked . | . . . . Overload Shots . | . . . . Overflow Damage . | . . . . Projectiles . | . . . . Explosions . | . . . . Melee . | . . . . Knockbacks . | . . . . Impact . | . . . . Kinetic . | . . . . Secondary . | . . . . Self-Inflicted Damage 14 | 14 . . . Shots 1 | 1 . . . Rammed . | . . . . Targets Rammed 2 | 1 . 1 . Kicked 2 | 1 . 1 . Crushed . | . . . . Highest Temperature 186 | 32 186 90 . Average Temperature 40 | 16 52 35 . Received Heat Transfer 267 | . 153 30 84 Siege Activations . | . . . . Martial Activations . | . . . . Shielding Activations . | . . . . Robots Disrupted 1 | . . 1 . Combat Hostiles 1 | . . 1 . Robots Corrupted 1 | . . . 1 Combat Hostiles 1 | . . . 1 Parts Fried 2 | . . . 2 Impact Corruptions . | . . . . Robots Melted . | . . . . Combat Hostiles . | . . . . Parts Melted 1 | . . 1 . Heat Transferred . | . . . . Parts Sabotaged . | . . . . Parts Stolen . | . . . . Parts Stripped . | . . . . Power Chain Reactions 1 | 1 . . . Alert | -11 -10 -10 -10 ------- Run | Yrd Mat Min Sub Maximum Alert Level . | . . . . Low Security (%) 100 | 100 100 100 . Level 1 . | . . . . Level 2 . | . . . . Level 3 . | . . . . Level 4 . | . . . . Level 5 . | . . . . High Security . | . . . . Max Security . | . . . . Peak Influence 103 | 5 60 103 . Initial 9 | . . 9 . Average 19 | 1 19 22 . Influence Increases 404 | 15 207 182 . Destroy 0b10 Robot/C 280 | . 160 120 . Destroy 0b10 Robot/NC 20 | 15 5 . . Destroy Leader 62 | . 42 20 . Allied During Kill 22 | . . 22 . Destroy Structure 5 | . . 5 . Lose Combat Pursuer 15 | . . 15 . Influence Decreases 404 | 15 181 169 39 Entered New Map 38 | . . 17 21 Time Decay 358 | 15 181 152 10 Lost Ally 8 | . . . 8 Squads Dispatched 3 | . 3 . . Investigation 1 | . 1 . . Extermination . | . . . . Reinforcement 2 | . 2 . . Assault . | . . . . Garrison . | . . . . Intercept . | . . . . Searches Triggered . | . . . . Construction Impeded . | . . . . Haulers Reinforced . | . . . . Active Scanning Responses . | . . . . Cargo Convoy Interrupts . | . . . . Stealth | -11 -10 -10 -10 --------- Run | Yrd Mat Min Sub Distress Signals 1 | . 1 . . Communications Jammed . | . . . . Distress Signals . | . . . . Times Spotted 44 | . 15 25 4 Peak Tracking Total 7 | . 3 7 2 Tactical Retreats 4 | . . 3 1 Traps | -11 -10 -10 -10 ------- Run | Yrd Mat Min Sub Traps Triggered 1 | . 1 . . Indirectly . | . . . . Trap Hack Attempts . | . . . . Triggered . | . . . . Disarmed . | . . . . Reprogrammed . | . . . . Reused . | . . . . Traps Extracted . | . . . . Installed . | . . . . Triggered . | . . . . Machines | -11 -10 -10 -10 ---------- Run | Yrd Mat Min Sub Machines Disabled . | . . . . Max in Single Turn . | . . . . Machines Repaired . | . . . . Machines Dismantled . | . . . . Machines Sabotaged . | . . . . Overloaded Fab Kills . | . . . . Hacking | -11 -10 -10 -10 --------- Run | Yrd Mat Min Sub Machines Accessed . | . . . . Terminals . | . . . . Fabricators . | . . . . Repair Stations . | . . . . Recycling Units . | . . . . Scanalyzers . | . . . . Garrison Access . | . . . . Total Hacks . | . . . . Successful . | . . . . Failed . | . . . . Catastrophic . | . . . . Database Lockouts . | . . . . Manual . | . . . . Terminals . | . . . . Fabricators . | . . . . Repair Stations . | . . . . Recycling Units . | . . . . Scanalyzers . | . . . . Garrison Access . | . . . . Terminal Hacks . | . . . . Fabricator Hacks . | . . . . Repair Station Hacks . | . . . . Recycling Unit Hacks . | . . . . Scanalyzer . | . . . . Garrison Access Hacks . | . . . . Unauthorized Hacks . | . . . . Terminals . | . . . . Fabricators . | . . . . Repair Stations . | . . . . Recycling Units . | . . . . Scanalyzers . | . . . . Garrison Access . | . . . . Data Cores Recovered . | . . . . Used . | . . . . Hacking Detections . | . . . . Full Trace Events . | . . . . Feedback Events . | . . . . Feedback Blocked . | . . . . Robot Schematics Acquired . | . . . . Robots Built . | . . . . Authchips . | . . . . Time . | . . . . Total Robot Build Rating . | . . . . Part Schematics Acquired . | . . . . Parts Built . | . . . . Authchips . | . . . . Time . | . . . . Total Part Build Rating . | . . . . Part Studies Acquired . | . . . . Parts Repaired . | . . . . Time . | . . . . Parts Recycled . | . . . . Recycled Matter . | . . . . Retrieved Matter . | . . . . Retrieved Components . | . . . . Parts Scanalyzed . | . . . . Part Schematics Acquired . | . . . . Parts Damaged . | . . . . Bothacking | -11 -10 -10 -10 ------------ Run | Yrd Mat Min Sub Used RIF Installer . | . . . . Robots Hacked . | . . . . Non-combat . | . . . . Combat . | . . . . Robot Hacks Applied . | . . . . Relay Couplers Released . | . . . . Fabnet Peak Effective % . | . . . . Robots Rewired . | . . . . Allies Hacked . | . . . . Hacks Repelled . | . . . . Allies | -11 -10 -10 -10 -------- Run | Yrd Mat Min Sub Total Allies 3 | . . 3 . Largest Group 3 | . . 3 1 Highest-Rated Group 40 | . . 40 8 Highest-Rated Ally 16 | . . 16 8 Total Orders 2 | . . 2 . FOLLOW 1 | . . 1 . AID 1 | . . 1 . Ally Attacks 20 | . . 20 . Total Damage 195 | . . 195 . Kills 5 | . . 5 . Allies Corrupted . | . . . . Allies Melted . | . . . . Intel | -11 -10 -10 -10 ------- Run | Yrd Mat Min Sub Active Infowar (turns) 232 | 20 212 . . Seismic 232 | 20 212 . . Robot Analysis Total . | . . . . Derelict Logs Recovered 3 | . . 2 1 Drone Launches . | . . . . Drone Recoveries . | . . . . Exploration | -11 -10 -10 -10 ------------- Run | Yrd Mat Min Sub Turns Passed 1810 | 120 551 958 181 Spaces Moved 1231 | 80 332 690 129 Core 4 | 4 . . . Treads . | . . . . Legs 1227 | 76 332 690 129 Wheels . | . . . . Hover . | . . . . Flight . | . . . . Fastest Speed 50 | 50 120 120 120 Average Speed 119 | 116 120 120 120 Slowest Speed 190 | 120 190 120 120 Overloaded Moves . | . . . . Propulsion Burnouts . | . . . . Robots Hopped . | . . . . Potential Cave-ins . | . . . . Cave-ins Triggered . | . . . . Exploration Rate (%) 39 | 3 47 99 9 Regions Visited 3 Branch Regions 2 Pre-discovered Areas 2 | . . 1 1 Known Exits Taken 2 | . 1 1 . Unknown Exits Taken 1 | 1 . . . Scrap Searched 2 | . . 2 . Spaces Dug 7 | . . 7 . Terrain Destroyed 9 | 2 . 7 . Melee . | . . . . Projectile 7 | . . 7 . AOE 2 | 2 . . . Terrain Rammed . | . . . . Walls Destroyed . | . . . . Machines Disabled . | . . . . Actions | -11 -10 -10 -10 --------- Run | Yrd Mat Min Sub Total 1428 | 94 429 762 143 Wait 63 | . 22 38 3 Move 1228 | 79 331 689 129 Hop . | . . . . Pick Up 17 | 2 14 1 . Fast Attach 13 | 7 5 1 . Attach 2 | . 1 . 1 Detach . | . . . . Swap 7 | . 4 3 . Drop 20 | . 17 3 . Fire 76 | 5 35 26 10 Melee . | . . . . Ram . | . . . . Kick 2 | 1 . 1 . Crush . | . . . . Escape Stasis . | . . . . Rewire . | . . . . Trap . | . . . . Miscellaneous . | . . . . Route ------- -11/Scrapyard -10/Materials (discovered 2 exits: *Min x2) -10/Mines (discovered 3 exits: *Mat x2 / *Sub) -10/Subcaves History --------- Turn | Location | Event 6 | -11/Scrapyard | Discovered new exit (range 16) 121 | -11/Scrapyard | Entered Materials 267 | -10/Materials | Discovered new exit (range 11) 304 | -10/Materials | Build established: Mutant 632 | -10/Materials | Discovered new exit (range 15) 651 | -10/Materials | Identified exit to Mines 672 | -10/Materials | Entered Mines 673 | -10/Mines | Met a Derelict bent on vengeance 724 | -10/Mines | Discovered new exit (range 10) 733 | -10/Mines | Identified exit to Subcaves 777 | -10/Mines | Discovered new exit (range 14) 789 | -10/Mines | Identified exit to Materials 793 | -10/Mines | Assembled infested the area 798 | -10/Mines | Assisted by a Guerilla fighting off Assembled 813 | -10/Mines | Core integrity fell below 50% 900 | -10/Mines | Learned location of Storage (-8) 955 | -10/Mines | Discovered exit to Materials (range 13) 1021 | -10/Mines | Assisted by bots powering up and referring to "LRC-V3" 1417 | -10/Mines | Joined a pair of Derelicts in attacking an 0b10 outpost 1630 | -10/Mines | Entered Subcaves 1630 | -10/Subcaves | Accompanied by 1 ally 1631 | -10/Subcaves | Approached by a straggling Scientist 1717 | -10/Subcaves | Core integrity fell below 20% 1791 | -10/Subcaves | Learned location of Zion (-7) 1811 | -10/Subcaves | Destroyed by Y6-3WF(R) with Subdweller Laser Last Messages --------------- 01680_ Subatomizers dissect the Ion Engine. LF-FBK(c): "I think it's somewhere northeast of here" 01689_ 0G-X7V(O) puts together Sub. Shrapnel Launcher. 01690_ Subatomizers dissect the Ion Engine. 01714_ EM Shotgun destroyed. 01727_ KM-3MB(R) system terminally corrupted. 01727_ Sub. Monowheel fried. 01727_ Sub. Optics fried. 01728_ Acquired 10 matter. LF-FBK(c): "I think it's somewhere northeast of here" 01732_ 0G-X7V(O) collects matter. 01772_ EM Shotgun destroyed. LF-FBK(c): "I think it's somewhere northeast of here" 01790_ OB-EGG(R) misfires. 01791_ Acquired derelict log, extracted data. World map updated: -7/Zion. Map ----- +----------------------------------------------------+ | ???????????????# ##????????????????????? | | ????????????????# % ##??????????????????? | | ?????????????????# % ###????????????????? | | ?????????????????# ##???????????????? | | ????????????????## ## %*####????????????? | | ????????????????# ???##= ####?????????? | | ????????????????# % ?????# #?????????? | | ????????????????# #?????# #####?????? | | ????????????????# #??#### % #?????? | | ????????????????##?## ??## # #????? | | ???????????????????# #### ##### ## | | ???????????????????## # ##???? | | ???????????????????# #?????## | | ?????????????????### ! [ ##???????? | | ????????????????## # #??????????? | | ????????????????# #### #??????????? | | ????????????????# #?# ##??###?????# | | ????????????????# #?# ###### ###### | | ????????????????# ### # % | | ????????????????## ##?## | | ?????????????????## ###???# # # # | | ??????????????????# ##?##### # ##### # | | ?????????????????? #?## # ### #?# # | | ?????????????????? # #?## ##?## # | | ????????????????? % ########## # | | ?????????????????% #?#@ R # ## ##?### | | ???????????????? ##?## R # %% #????? | | ????????????????## #??# # ## # % #????? | | ?????????????????## ##??# ##?$## # #%# ## ##????? | | ??????????????????##????# #???<## ##########?????? | | ????????????????????????# #?????# #??????????????? | | ????????????????????????#%##???## #??????????????? | | ????????????????????????# ##### #??????????????? | | ????????????????????????# #??????????????? | | ????????????????????????###########??????????????? | | ?????????????????????????????????????????????????? | | ?????????????????????????????????????????????????? | | ?????????????????????????????????????????????????? | | ?????????????????????????????????????????????????? | | ?????????????????????????????????????????????????? | | ?????????????????????????????????????????????????? | | ?????????????????????????????????????????????????? | | ?????????????????????????????????????????????????? | | ?????????????????????????????????????????????????? | | ?????????????????????????????????????????????????? | | ?????????????????????????????????????????????????? | | ?????????????????????????????????????????????????? | | ?????????????????????????????????????????????????? | | ?????????????????????????????????????????????????? | | ?????????????????????????????????????????????????? | +----------------------------------------------------+ Best States ------------- Heat Dissipation 25 Energy Generation 10 Energy Capacity 250 Matter Stores 300 Matter Capacity 300 Sight Range 16 Terrain Scan Density 10 Evasion (%) 55 Item Schematics ----------------- None Robot Schematics ------------------ None Fabricated ------------ Nothing Repaired ---------- Nothing Studied --------- None Alien Tech Used ----------------- None Achievements -------------- I Survived The Infestation Challenges ------------ None Game ------ Seed EnergyArmorProtection Manual? 0 Play Time 00:20:54 Cumulative 39.7 hours Start 2026.02.14 @ 19:25:08 End 2026.02.14 @ 19:44:10 Sessions 1 Manual Loads 0 Difficulty Rogue Special Mode None Game No. 45 Rogue 45 Adventurer 0 Explorer 0 Win Type - Total 0 Types 0/0/0/0/0/0/0/0/0/0 Lore% 16 Gallery% 16 Achievement% 16 Wizard Run 0 Options --------- Layout 1 ASCII 0 Keyboard 1 Movement Numpad Keybinds 0 Fullscreen 2 Font 24/Cog Map View 50x35 Zoom Use 0% Tactical HUD 1 Map Filters NONE Filters NONE Steam 1 RUN: 3fdfba1c-9ea8-4b7a-b7d3-3a97ed80dc4d